[Event "Titled Tuesday Blitz December 27 Early 2022"]
[White "Dimitrov, Atanas"]
[Black "Kazancev, Valerij M"]
[WhiteFideId "2901315"]
[BlackFideId "4179609"]
[WhiteElo "2269"]
[BlackElo "2313"]
[Result "0-1"]
[Round "11"]
[TimeControl "180+2"]
[Date "2022.12.27"]
[WhiteClock "0:00:01"]
[BlackClock "0:00:14"]

1. e4 {[%clk 0:03:00]}  g6 {[%clk 0:02:55]} 2. Nc3 {[%clk 0:03:00]}  Bg7 {[%clk 0:02:55]} 3. d4 {[%clk 0:03:01]}  e6 {[%clk 0:02:56]} 4. Nf3 {[%clk 0:03:01]}  Ne7 {[%clk 0:02:56]} 5. Be3 {[%clk 0:03:02]}  a6 {[%clk 0:02:56]} 6. Bd3 {[%clk 0:03:02]}  h6 {[%clk 0:02:56]} 7. Qd2 {[%clk 0:03:02]}  b5 {[%clk 0:02:56]} 8. h4 {[%clk 0:02:59]}  d6 {[%clk 0:02:56]} 9. Ne2 {[%clk 0:02:56]}  Nd7 {[%clk 0:02:54]} 10. c3 {[%clk 0:02:51]}  Bb7 {[%clk 0:02:53]} 11. Ng3 {[%clk 0:02:50]}  c5 {[%clk 0:02:53]} 12. Bc2 {[%clk 0:02:50]}  Rc8 {[%clk 0:02:51]} 13. dxc5 {[%clk 0:02:48]}  dxc5 {[%clk 0:02:40]} 14. O-O-O {[%clk 0:02:48]}  Qc7 {[%clk 0:02:36]} 15. Kb1 {[%clk 0:02:42]}  Nb6 {[%clk 0:02:35]} 16. Qe2 {[%clk 0:02:29]}  Nc4 {[%clk 0:02:34]} 17. Bc1 {[%clk 0:02:29]}  O-O {[%clk 0:02:28]} 18. Nd2 {[%clk 0:02:27]}  Nb6 {[%clk 0:02:06]} 19. Ndf1 {[%clk 0:02:24]}  b4 {[%clk 0:01:49]} 20. cxb4 {[%clk 0:02:21]}  cxb4 {[%clk 0:01:48]} 21. Ne3 {[%clk 0:02:22]}  Nc6 {[%clk 0:01:45]} 22. Ng4 {[%clk 0:02:12]}  h5 {[%clk 0:01:45]} 23. Nh6+ {[%clk 0:01:32]}  Kh7 {[%clk 0:01:42]} 24. Nxh5 {[%clk 0:01:32]}  Bxh6 {[%clk 0:01:12]} 25. Nf6+ {[%clk 0:01:02]}  Kg7 {[%clk 0:01:11]} 26. Bxh6+ {[%clk 0:01:03]}  Kxh6 {[%clk 0:01:12]} 27. h5 {[%clk 0:01:00]}  g5 {[%clk 0:01:09]} 28. Ng4+ {[%clk 0:00:55]}  Kg7 {[%clk 0:01:09]} 29. e5 {[%clk 0:00:53]}  Ne7 {[%clk 0:01:00]} 30. Be4 {[%clk 0:00:36]}  Bxe4+ {[%clk 0:00:24]} 31. Qxe4 {[%clk 0:00:37]}  Qc6 {[%clk 0:00:23]} 32. Qe3 {[%clk 0:00:26]}  Qc2+ {[%clk 0:00:17]} 33. Ka1 {[%clk 0:00:26]}  Qf5 {[%clk 0:00:17]} 34. h6+ {[%clk 0:00:08]}  Kh8 {[%clk 0:00:17]} 35. Qxb6 {[%clk 0:00:05]}  Qxg4 {[%clk 0:00:17]} 36. Qxa6 {[%clk 0:00:05]}  Nd5 {[%clk 0:00:17]} 37. f3 {[%clk 0:00:03]}  Qf5 {[%clk 0:00:16]} 38. Qe2 {[%clk 0:00:01]}  b3 {[%clk 0:00:15]} 39. a3 {[%clk 0:00:01]}  Nb4 {[%clk 0:00:14]} 40. Rc1 {[%clk 0:00:01]}  Nc2+ {[%clk 0:00:14]} 0-1


[Site "https://www.chess.com"]

[Event "Titled Tuesday Blitz December 27 Early 2022"]
[White "Feng, Eric"]
[Black "Shubenkova, Veronika"]
[WhiteFideId "30952590"]
[BlackFideId "44124040"]
[WhiteElo "1951"]
[BlackElo "1960"]
[Result "1-0"]
[Round "11"]
[TimeControl "180+2"]
[Date "2022.12.27"]
[WhiteClock "0:00:11"]
[BlackClock "0:00:02"]

1. d4 {[%clk 0:03:00]}  d5 {[%clk 0:02:59]} 2. c4 {[%clk 0:03:00]}  e6 {[%clk 0:02:59]} 3. Nf3 {[%clk 0:03:00]}  Nf6 {[%clk 0:02:59]} 4. g3 {[%clk 0:03:00]}  Be7 {[%clk 0:02:59]} 5. Bg2 {[%clk 0:03:01]}  O-O {[%clk 0:03:00]} 6. O-O {[%clk 0:03:01]}  c6 {[%clk 0:03:00]} 7. Nbd2 {[%clk 0:03:02]}  Nbd7 {[%clk 0:02:59]} 8. Qc2 {[%clk 0:03:02]}  Re8 {[%clk 0:03:00]} 9. e4 {[%clk 0:03:03]}  dxe4 {[%clk 0:03:00]} 10. Nxe4 {[%clk 0:03:04]}  Nxe4 {[%clk 0:03:00]} 11. Qxe4 {[%clk 0:03:04]}  Nf6 {[%clk 0:03:00]} 12. Qe2 {[%clk 0:03:05]}  Bd6 {[%clk 0:02:57]} 13. Rd1 {[%clk 0:03:02]}  Bd7 {[%clk 0:02:56]} 14. h4 {[%clk 0:02:58]}  h6 {[%clk 0:02:54]} 15. Bd2 {[%clk 0:02:55]}  Qc7 {[%clk 0:02:41]} 16. c5 {[%clk 0:02:49]}  Bf8 {[%clk 0:02:39]} 17. Bf4 {[%clk 0:02:49]}  Qd8 {[%clk 0:02:36]} 18. Ne5 {[%clk 0:02:36]}  Nd5 {[%clk 0:02:35]} 19. Qf3 {[%clk 0:02:36]}  Nxf4 {[%clk 0:02:31]} 20. Qxf4 {[%clk 0:02:37]}  f6 {[%clk 0:02:31]} 21. Nc4 {[%clk 0:02:35]}  Qb8 {[%clk 0:02:29]} 22. Qf3 {[%clk 0:02:30]}  Qc7 {[%clk 0:02:28]} 23. Re1 {[%clk 0:02:27]}  Rad8 {[%clk 0:02:27]} 24. Rad1 {[%clk 0:02:28]}  Bc8 {[%clk 0:02:23]} 25. Bh3 {[%clk 0:02:24]}  Rd5 {[%clk 0:02:10]} 26. b4 {[%clk 0:01:52]}  Qd8 {[%clk 0:02:09]} 27. Re4 {[%clk 0:01:45]}  f5 {[%clk 0:02:07]} 28. Ree1 {[%clk 0:01:27]}  Rxd4 {[%clk 0:02:07]} 29. Nd6 {[%clk 0:01:27]}  Rxd1 {[%clk 0:02:05]} 30. Rxd1 {[%clk 0:01:28]}  Bxd6 {[%clk 0:02:00]} 31. Rxd6 {[%clk 0:01:29]}  Qf6 {[%clk 0:01:54]} 32. Qd3 {[%clk 0:01:23]}  Qa1+ {[%clk 0:01:40]} 33. Bf1 {[%clk 0:01:22]}  Qxa2 {[%clk 0:01:37]} 34. Rd8 {[%clk 0:01:22]}  Kf7 {[%clk 0:01:34]} 35. Qd6 {[%clk 0:01:18]}  e5 {[%clk 0:00:48]} 36. Qc7+ {[%clk 0:01:15]}  Re7 {[%clk 0:00:47]} 37. Qxc8 {[%clk 0:01:15]}  Qb1 {[%clk 0:00:38]} 38. Kh2 {[%clk 0:01:02]}  Qc2 {[%clk 0:00:25]} 39. Kg1 {[%clk 0:00:45]}  Kg6 {[%clk 0:00:21]} 40. Rf8 {[%clk 0:00:37]}  Qe4 {[%clk 0:00:09]} 41. Bh3 {[%clk 0:00:29]}  Qe1+ {[%clk 0:00:09]} 42. Kg2 {[%clk 0:00:29]}  Qe4+ {[%clk 0:00:09]} 43. Kh2 {[%clk 0:00:29]}  Rf7 {[%clk 0:00:07]} 44. Qe8 {[%clk 0:00:27]}  Qc4 {[%clk 0:00:03]} 45. h5+ {[%clk 0:00:10]}  Kf6 {[%clk 0:00:03]} 46. Qd8+ {[%clk 0:00:11]}  Ke6 {[%clk 0:00:02]} 47. Qd6# {[%clk 0:00:11]} 1-0


[Site "https://www.chess.com"]

[Event "Titled Tuesday Blitz December 27 Early 2022"]
[White "Goncalves, Davi Sulzbacher"]
[Black "Goltseva, Ekaterina"]
[WhiteFideId "2154510"]
[BlackFideId "24173770"]
[WhiteElo "2282"]
[BlackElo "2283"]
[Result "1-0"]
[Round "11"]
[TimeControl "180+2"]
[Date "2022.12.27"]
[WhiteClock "0:00:43"]
[BlackClock "0:00:18"]

1. Nf3 {[%clk 0:02:56]}  d5 {[%clk 0:02:58]} 2. d4 {[%clk 0:02:57]}  Nf6 {[%clk 0:02:58]} 3. Bg5 {[%clk 0:02:57]}  Ne4 {[%clk 0:02:58]} 4. Bh4 {[%clk 0:02:56]}  c5 {[%clk 0:02:58]} 5. e3 {[%clk 0:02:56]}  Qb6 {[%clk 0:02:58]} 6. Nbd2 {[%clk 0:02:54]}  cxd4 {[%clk 0:02:55]} 7. exd4 {[%clk 0:02:52]}  Qxb2 {[%clk 0:02:48]} 8. Rb1 {[%clk 0:02:50]}  Qc3 {[%clk 0:02:43]} 9. Bb5+ {[%clk 0:02:47]}  Nc6 {[%clk 0:02:38]} 10. O-O {[%clk 0:02:40]}  Bd7 {[%clk 0:02:35]} 11. Rb3 {[%clk 0:02:29]}  Qa5 {[%clk 0:02:32]} 12. Nxe4 {[%clk 0:02:12]}  dxe4 {[%clk 0:02:27]} 13. Ng5 {[%clk 0:02:12]}  O-O-O {[%clk 0:01:55]} 14. Nxf7 {[%clk 0:02:09]}  Be6 {[%clk 0:01:54]} 15. Nxd8 {[%clk 0:02:06]}  Qxd8 {[%clk 0:01:50]} 16. Rc3 {[%clk 0:01:49]}  Bd5 {[%clk 0:01:44]} 17. Bg3 {[%clk 0:01:21]}  e6 {[%clk 0:01:32]} 18. Qg4 {[%clk 0:01:08]}  Qa5 {[%clk 0:01:18]} 19. Rxc6+ {[%clk 0:00:53]}  bxc6 {[%clk 0:01:14]} 20. c4 {[%clk 0:00:53]}  h5 {[%clk 0:01:08]} 21. Qf4 {[%clk 0:00:51]}  Kd7 {[%clk 0:00:30]} 22. cxd5 {[%clk 0:00:45]}  Qxb5 {[%clk 0:00:30]} 23. Qc7+ {[%clk 0:00:44]}  Ke8 {[%clk 0:00:29]} 24. dxe6 {[%clk 0:00:43]}  Be7 {[%clk 0:00:19]} 25. Qd7+ {[%clk 0:00:42]}  Kf8 {[%clk 0:00:17]} 26. Qc8+ {[%clk 0:00:42]}  Bd8 {[%clk 0:00:18]} 27. Qxd8# {[%clk 0:00:43]} 1-0


[Site "https://www.chess.com"]

[Event "Titled Tuesday Blitz December 27 Early 2022"]
[White "Guliev, Logman"]
[Black "Ambartsumova, Karina"]
[WhiteFideId "13400061"]
[BlackFideId "4166299"]
[WhiteElo "2250"]
[BlackElo "2393"]
[Result "0-1"]
[Round "11"]
[TimeControl "180+2"]
[Date "2022.12.27"]
[WhiteClock "0:00:02"]
[BlackClock "0:00:07"]

1. e4 {[%clk 0:03:00]}  e5 {[%clk 0:02:59]} 2. Nf3 {[%clk 0:03:00]}  Nc6 {[%clk 0:02:59]} 3. Bb5 {[%clk 0:02:59]}  Nf6 {[%clk 0:02:57]} 4. d3 {[%clk 0:02:59]}  d6 {[%clk 0:02:56]} 5. O-O {[%clk 0:02:58]}  Bd7 {[%clk 0:02:56]} 6. c4 {[%clk 0:02:58]}  g6 {[%clk 0:02:56]} 7. Nc3 {[%clk 0:02:58]}  Bg7 {[%clk 0:02:55]} 8. Bxc6 {[%clk 0:02:58]}  Bxc6 {[%clk 0:02:49]} 9. Nd5 {[%clk 0:02:57]}  h6 {[%clk 0:02:38]} 10. Be3 {[%clk 0:02:53]}  O-O {[%clk 0:02:38]} 11. b4 {[%clk 0:02:44]}  Bd7 {[%clk 0:02:31]} 12. b5 {[%clk 0:02:40]}  c6 {[%clk 0:02:25]} 13. bxc6 {[%clk 0:02:38]}  bxc6 {[%clk 0:02:26]} 14. Nxf6+ {[%clk 0:02:36]}  Qxf6 {[%clk 0:02:27]} 15. Qc1 {[%clk 0:02:22]}  Kh7 {[%clk 0:02:22]} 16. d4 {[%clk 0:02:16]}  exd4 {[%clk 0:01:57]} 17. Bxd4 {[%clk 0:02:13]}  Qe7 {[%clk 0:01:57]} 18. Bxg7 {[%clk 0:02:05]}  Kxg7 {[%clk 0:01:58]} 19. Re1 {[%clk 0:02:03]}  Be6 {[%clk 0:01:51]} 20. Nd4 {[%clk 0:01:56]}  Bd7 {[%clk 0:01:39]} 21. Re3 {[%clk 0:01:34]}  Qf6 {[%clk 0:01:28]} 22. Nb3 {[%clk 0:01:09]}  c5 {[%clk 0:01:21]} 23. Qd2 {[%clk 0:00:48]}  Bc6 {[%clk 0:01:06]} 24. Rd1 {[%clk 0:00:44]}  Rfd8 {[%clk 0:01:05]} 25. Na5 {[%clk 0:00:40]}  Ba4 {[%clk 0:01:03]} 26. Rde1 {[%clk 0:00:37]}  Rab8 {[%clk 0:01:01]} 27. Rf3 {[%clk 0:00:31]}  Qe5 {[%clk 0:00:55]} 28. Rh3 {[%clk 0:00:28]}  h5 {[%clk 0:00:49]} 29. f4 {[%clk 0:00:26]}  Qb2 {[%clk 0:00:25]} 30. Qe3 {[%clk 0:00:15]}  Bd7 {[%clk 0:00:23]} 31. Rg3 {[%clk 0:00:13]}  h4 {[%clk 0:00:20]} 32. Rg5 {[%clk 0:00:12]}  Qxa2 {[%clk 0:00:13]} 33. Qc3+ {[%clk 0:00:11]}  Kg8 {[%clk 0:00:10]} 34. f5 {[%clk 0:00:11]}  Qb2 {[%clk 0:00:10]} 35. Qxb2 {[%clk 0:00:10]}  Rxb2 {[%clk 0:00:11]} 36. fxg6 {[%clk 0:00:10]}  f6 {[%clk 0:00:08]} 37. Rd5 {[%clk 0:00:10]}  Be6 {[%clk 0:00:08]} 38. Rd3 {[%clk 0:00:09]}  Kg7 {[%clk 0:00:06]} 39. Red1 {[%clk 0:00:08]}  Rb6 {[%clk 0:00:05]} 40. Rb3 {[%clk 0:00:05]}  Kxg6 {[%clk 0:00:05]} 41. Rbd3 {[%clk 0:00:04]}  Kf7 {[%clk 0:00:04]} 42. Kf2 {[%clk 0:00:03]}  Ke7 {[%clk 0:00:04]} 43. Ke3 {[%clk 0:00:03]}  Rdb8 {[%clk 0:00:04]} 44. R1d2 {[%clk 0:00:04]}  Rg8 {[%clk 0:00:04]} 45. Kf4 {[%clk 0:00:03]}  Rg4+ {[%clk 0:00:03]} 46. Kf3 {[%clk 0:00:04]}  Rg5 {[%clk 0:00:04]} 47. h3 {[%clk 0:00:04]}  Rg3+ {[%clk 0:00:04]} 48. Kf4 {[%clk 0:00:05]}  Rxd3 {[%clk 0:00:04]} 49. Rxd3 {[%clk 0:00:06]}  Bd7 {[%clk 0:00:03]} 50. Rb3 {[%clk 0:00:05]}  Rxb3 {[%clk 0:00:03]} 51. Nxb3 {[%clk 0:00:05]}  Be6 {[%clk 0:00:04]} 52. Na5 {[%clk 0:00:05]}  Kd7 {[%clk 0:00:04]} 53. g3 {[%clk 0:00:04]}  hxg3 {[%clk 0:00:04]} 54. Kxg3 {[%clk 0:00:04]}  Kc7 {[%clk 0:00:04]} 55. h4 {[%clk 0:00:05]}  Kb6 {[%clk 0:00:05]} 56. Nb3 {[%clk 0:00:03]}  Bxc4 {[%clk 0:00:05]} 57. Nd2 {[%clk 0:00:04]}  Bf7 {[%clk 0:00:05]} 58. Kf4 {[%clk 0:00:04]}  a5 {[%clk 0:00:06]} 59. Kf5 {[%clk 0:00:04]}  a4 {[%clk 0:00:06]} 60. Nb1 {[%clk 0:00:04]}  Kb5 {[%clk 0:00:05]} 61. Kxf6 {[%clk 0:00:05]}  Bh5 {[%clk 0:00:06]} 62. Ke6 {[%clk 0:00:04]}  Kb4 {[%clk 0:00:05]} 63. Kxd6 {[%clk 0:00:05]}  c4 {[%clk 0:00:05]} 64. e5 {[%clk 0:00:05]}  c3 {[%clk 0:00:06]} 65. Nxc3 {[%clk 0:00:02]}  Kxc3 {[%clk 0:00:07]} 66. e6 {[%clk 0:00:02]}  a3 {[%clk 0:00:07]} 0-1


[Site "https://www.chess.com"]

[Event "Titled Tuesday Blitz December 27 Early 2022"]
[White "Iskusnyh, Sergei"]
[Black "Janaszak, Dawid"]
[WhiteFideId "4120027"]
[BlackFideId "1119206"]
[WhiteElo "2440"]
[BlackElo "2316"]
[Result "0-1"]
[Round "11"]
[TimeControl "180+2"]
[Date "2022.12.27"]
[WhiteClock "0:00:16"]
[BlackClock "0:00:38"]

1. d4 {[%clk 0:03:00]}  Nf6 {[%clk 0:02:59]} 2. c4 {[%clk 0:03:01]}  c5 {[%clk 0:02:58]} 3. d5 {[%clk 0:02:56]}  b5 {[%clk 0:02:58]} 4. cxb5 {[%clk 0:02:52]}  a6 {[%clk 0:02:58]} 5. e3 {[%clk 0:02:52]}  e6 {[%clk 0:02:52]} 6. Nc3 {[%clk 0:02:49]}  Bb7 {[%clk 0:02:52]} 7. e4 {[%clk 0:02:41]}  d6 {[%clk 0:02:43]} 8. bxa6 {[%clk 0:02:33]}  Bxa6 {[%clk 0:02:38]} 9. Qa4+ {[%clk 0:02:26]}  Nfd7 {[%clk 0:02:35]} 10. dxe6 {[%clk 0:02:16]}  fxe6 {[%clk 0:02:35]} 11. Bc4 {[%clk 0:02:16]}  Qf6 {[%clk 0:02:01]} 12. Nf3 {[%clk 0:02:14]}  Be7 {[%clk 0:01:59]} 13. Bg5 {[%clk 0:01:52]}  Qf7 {[%clk 0:01:58]} 14. O-O {[%clk 0:01:30]}  O-O {[%clk 0:01:58]} 15. Rad1 {[%clk 0:01:26]}  Nb6 {[%clk 0:01:51]} 16. Qc2 {[%clk 0:00:47]}  Nxc4 {[%clk 0:01:45]} 17. Rfe1 {[%clk 0:00:43]}  Nc6 {[%clk 0:01:44]} 18. b3 {[%clk 0:00:36]}  N4e5 {[%clk 0:01:41]} 19. Nxe5 {[%clk 0:00:33]}  dxe5 {[%clk 0:01:39]} 20. Bxe7 {[%clk 0:00:29]}  Qxe7 {[%clk 0:01:35]} 21. Na4 {[%clk 0:00:29]}  Nd4 {[%clk 0:01:23]} 22. Qxc5 {[%clk 0:00:30]}  Qg5 {[%clk 0:01:22]} 23. Rxd4 {[%clk 0:00:23]}  Rac8 {[%clk 0:01:03]} 24. Qa5 {[%clk 0:00:22]}  Rc2 {[%clk 0:00:51]} 25. Rdd1 {[%clk 0:00:21]}  Rcxf2 {[%clk 0:00:46]} 26. g3 {[%clk 0:00:20]}  Qh5 {[%clk 0:00:40]} 27. h4 {[%clk 0:00:16]}  Qf3 {[%clk 0:00:38]} 0-1


[Site "https://www.chess.com"]

[Event "Titled Tuesday Blitz December 27 Early 2022"]
[White "Jimenez Almeida, Luis David"]
[Black "Liyanage, Ranindu Dilshan"]
[WhiteFideId "22242244"]
[BlackFideId "9915834"]
[WhiteElo "2242"]
[BlackElo "2342"]
[Result "0-1"]
[Round "11"]
[TimeControl "180+2"]
[Date "2022.12.27"]
[WhiteClock "0:00:01"]
[BlackClock "0:00:04"]

1. e4 {[%clk 0:03:00]}  e6 {[%clk 0:02:58]} 2. Nf3 {[%clk 0:02:57]}  d5 {[%clk 0:02:58]} 3. Nc3 {[%clk 0:02:57]}  Nf6 {[%clk 0:02:50]} 4. e5 {[%clk 0:02:57]}  Nfd7 {[%clk 0:02:50]} 5. d4 {[%clk 0:02:57]}  c5 {[%clk 0:02:49]} 6. dxc5 {[%clk 0:02:58]}  Nxc5 {[%clk 0:02:46]} 7. Bf4 {[%clk 0:02:53]}  Nc6 {[%clk 0:02:45]} 8. Qd2 {[%clk 0:02:52]}  a6 {[%clk 0:02:24]} 9. a3 {[%clk 0:02:51]}  Qa5 {[%clk 0:01:59]} 10. Be2 {[%clk 0:02:34]}  b5 {[%clk 0:01:46]} 11. O-O {[%clk 0:02:30]}  b4 {[%clk 0:01:46]} 12. axb4 {[%clk 0:02:30]}  Qxb4 {[%clk 0:01:47]} 13. Rfd1 {[%clk 0:01:59]}  h6 {[%clk 0:01:38]} 14. h4 {[%clk 0:01:57]}  Be7 {[%clk 0:01:37]} 15. h5 {[%clk 0:01:57]}  Bb7 {[%clk 0:01:28]} 16. b3 {[%clk 0:01:49]}  Rd8 {[%clk 0:01:17]} 17. Nb1 {[%clk 0:01:34]}  Qb6 {[%clk 0:01:03]} 18. Bd3 {[%clk 0:01:23]}  Ne4 {[%clk 0:00:50]} 19. Qe2 {[%clk 0:01:23]}  Bc5 {[%clk 0:00:39]} 20. Bxe4 {[%clk 0:01:17]}  dxe4 {[%clk 0:00:40]} 21. Rxd8+ {[%clk 0:01:16]}  Kxd8 {[%clk 0:00:34]} 22. Nfd2 {[%clk 0:01:05]}  Nd4 {[%clk 0:00:30]} 23. Qd1 {[%clk 0:01:02]}  Ke7 {[%clk 0:00:27]} 24. Nc4 {[%clk 0:01:01]}  Qc7 {[%clk 0:00:22]} 25. c3 {[%clk 0:00:56]}  Nf5 {[%clk 0:00:20]} 26. Qg4 {[%clk 0:00:51]}  Rd8 {[%clk 0:00:20]} 27. Nbd2 {[%clk 0:00:49]}  Rd3 {[%clk 0:00:17]} 28. Re1 {[%clk 0:00:38]}  Bd5 {[%clk 0:00:11]} 29. Nxe4 {[%clk 0:00:31]}  Bxc4 {[%clk 0:00:11]} 30. bxc4 {[%clk 0:00:30]}  Ba3 {[%clk 0:00:09]} 31. Nd6 {[%clk 0:00:20]}  Nxd6 {[%clk 0:00:04]} 32. exd6+ {[%clk 0:00:21]}  Bxd6 {[%clk 0:00:04]} 33. Be3 {[%clk 0:00:05]}  Be5 {[%clk 0:00:04]} 34. c5 {[%clk 0:00:04]}  Rxc3 {[%clk 0:00:04]} 35. Qe4 {[%clk 0:00:01]}  Bf6 {[%clk 0:00:04]} 36. Bf4 {[%clk 0:00:01]}  Qc8 {[%clk 0:00:04]} 0-1


[Site "https://www.chess.com"]

[Event "Titled Tuesday Blitz December 27 Early 2022"]
[White "Kho, Darrell"]
[Black "Flis, Pawel"]
[WhiteFideId "1019317"]
[BlackFideId "1112864"]
[WhiteElo "2075"]
[BlackElo "1879"]
[Result "1-0"]
[Round "11"]
[TimeControl "180+2"]
[Date "2022.12.27"]
[WhiteClock "0:00:17"]
[BlackClock "0:00:08"]

1. e4 {[%clk 0:02:57]}  c5 {[%clk 0:02:59]} 2. Nf3 {[%clk 0:02:56]}  d6 {[%clk 0:03:00]} 3. d4 {[%clk 0:02:56]}  Nf6 {[%clk 0:03:00]} 4. Nc3 {[%clk 0:02:54]}  cxd4 {[%clk 0:03:00]} 5. Qxd4 {[%clk 0:02:54]}  a6 {[%clk 0:03:00]} 6. Be2 {[%clk 0:02:53]}  Nc6 {[%clk 0:03:00]} 7. Qe3 {[%clk 0:02:53]}  g6 {[%clk 0:02:51]} 8. O-O {[%clk 0:02:53]}  Bg7 {[%clk 0:02:51]} 9. h3 {[%clk 0:02:51]}  O-O {[%clk 0:02:50]} 10. Rd1 {[%clk 0:02:51]}  Qc7 {[%clk 0:02:48]} 11. Qf4 {[%clk 0:02:45]}  b5 {[%clk 0:02:34]} 12. a3 {[%clk 0:02:33]}  Bb7 {[%clk 0:02:26]} 13. Qh4 {[%clk 0:02:33]}  Rfe8 {[%clk 0:02:19]} 14. Bh6 {[%clk 0:02:24]}  Bh8 {[%clk 0:02:18]} 15. Rac1 {[%clk 0:02:11]}  b4 {[%clk 0:02:17]} 16. axb4 {[%clk 0:01:45]}  Nxb4 {[%clk 0:02:17]} 17. e5 {[%clk 0:01:46]}  Nfd5 {[%clk 0:01:56]} 18. Nxd5 {[%clk 0:01:19]}  Nxd5 {[%clk 0:01:52]} 19. c4 {[%clk 0:01:19]}  Nb6 {[%clk 0:01:38]} 20. e6 {[%clk 0:00:48]}  f6 {[%clk 0:01:29]} 21. Bf4 {[%clk 0:00:45]}  Qc5 {[%clk 0:01:13]} 22. b4 {[%clk 0:00:39]}  Qh5 {[%clk 0:01:05]} 23. Qxh5 {[%clk 0:00:36]}  gxh5 {[%clk 0:01:05]} 24. Nd4 {[%clk 0:00:28]}  h4 {[%clk 0:00:57]} 25. Nf5 {[%clk 0:00:29]}  Be4 {[%clk 0:00:46]} 26. Nxh4 {[%clk 0:00:17]}  Rab8 {[%clk 0:00:29]} 27. Bh5 {[%clk 0:00:17]}  Rec8 {[%clk 0:00:25]} 28. f3 {[%clk 0:00:17]}  Bb7 {[%clk 0:00:21]} 29. Bf7+ {[%clk 0:00:17]}  Kf8 {[%clk 0:00:19]} 30. Nf5 {[%clk 0:00:17]}  Bg7 {[%clk 0:00:10]} 31. Rxd6 {[%clk 0:00:17]}  exd6 {[%clk 0:00:08]} 32. Bxd6# {[%clk 0:00:17]} 1-0


[Site "https://www.chess.com"]

[Event "Titled Tuesday Blitz December 27 Early 2022"]
[White "Kilic, Eray"]
[Black "Toncheva, Nadya"]
[WhiteFideId "44517173"]
[BlackFideId "2924056"]
[WhiteElo "2414"]
[BlackElo "2295"]
[Result "1-0"]
[Round "11"]
[TimeControl "180+2"]
[Date "2022.12.27"]
[WhiteClock "0:00:17"]
[BlackClock "0:00:20"]

1. e4 {[%clk 0:03:00]}  c5 {[%clk 0:03:00]} 2. Nf3 {[%clk 0:03:00]}  e6 {[%clk 0:03:00]} 3. d4 {[%clk 0:03:01]}  cxd4 {[%clk 0:03:01]} 4. Nxd4 {[%clk 0:03:02]}  Nc6 {[%clk 0:03:01]} 5. Nc3 {[%clk 0:03:02]}  Qc7 {[%clk 0:03:01]} 6. g3 {[%clk 0:03:02]}  a6 {[%clk 0:03:01]} 7. Bg2 {[%clk 0:03:02]}  Nf6 {[%clk 0:03:01]} 8. O-O {[%clk 0:03:02]}  Be7 {[%clk 0:03:01]} 9. Re1 {[%clk 0:03:01]}  d6 {[%clk 0:03:00]} 10. Nxc6 {[%clk 0:03:01]}  bxc6 {[%clk 0:02:59]} 11. e5 {[%clk 0:03:00]}  Nd5 {[%clk 0:02:54]} 12. exd6 {[%clk 0:02:56]}  Bxd6 {[%clk 0:02:55]} 13. Nxd5 {[%clk 0:02:54]}  cxd5 {[%clk 0:02:45]} 14. Qxd5 {[%clk 0:02:49]}  Rb8 {[%clk 0:02:39]} 15. Qg5 {[%clk 0:02:14]}  O-O {[%clk 0:02:35]} 16. c3 {[%clk 0:02:12]}  Bb7 {[%clk 0:02:32]} 17. Qg4 {[%clk 0:02:04]}  Bxg2 {[%clk 0:02:29]} 18. Kxg2 {[%clk 0:02:05]}  Rfd8 {[%clk 0:02:16]} 19. c4 {[%clk 0:01:55]}  Be5 {[%clk 0:02:13]} 20. Bg5 {[%clk 0:01:43]}  Rd4 {[%clk 0:02:03]} 21. Qe2 {[%clk 0:01:38]}  Bd6 {[%clk 0:01:47]} 22. b3 {[%clk 0:01:28]}  Qc6+ {[%clk 0:01:36]} 23. Qf3 {[%clk 0:01:21]}  Qd7 {[%clk 0:01:24]} 24. Be3 {[%clk 0:01:16]}  Rd3 {[%clk 0:01:23]} 25. Rad1 {[%clk 0:01:16]}  Bb4 {[%clk 0:01:21]} 26. Rxd3 {[%clk 0:01:14]}  Qxd3 {[%clk 0:01:19]} 27. Rd1 {[%clk 0:01:14]}  Qc2 {[%clk 0:01:13]} 28. Rd7 {[%clk 0:01:06]}  Rf8 {[%clk 0:01:07]} 29. Rb7 {[%clk 0:00:26]}  a5 {[%clk 0:01:06]} 30. a3 {[%clk 0:00:21]}  Bxa3 {[%clk 0:01:00]} 31. c5 {[%clk 0:00:21]}  Qc3 {[%clk 0:00:21]} 32. c6 {[%clk 0:00:18]}  Bd6 {[%clk 0:00:21]} 33. Rd7 {[%clk 0:00:17]}  Qe5 {[%clk 0:00:20]} 34. Bf4 {[%clk 0:00:17]} 1-0


[Site "https://www.chess.com"]

[Event "Titled Tuesday Blitz December 27 Early 2022"]
[White "Kleiman, Jake"]
[Black "Rangel, Daniel"]
[WhiteFideId "2020041"]
[BlackFideId "2124475"]
[WhiteElo "2399"]
[BlackElo "2207"]
[Result "1-0"]
[Round "11"]
[TimeControl "180+2"]
[Date "2022.12.27"]
[WhiteClock "0:00:29"]
[BlackClock "0:00:07"]

1. e4 {[%clk 0:03:00]}  c5 {[%clk 0:02:58]} 2. c3 {[%clk 0:03:01]}  g6 {[%clk 0:02:54]} 3. d4 {[%clk 0:03:01]}  cxd4 {[%clk 0:02:55]} 4. cxd4 {[%clk 0:03:02]}  d5 {[%clk 0:02:41]} 5. e5 {[%clk 0:03:02]}  Bg7 {[%clk 0:02:39]} 6. Nc3 {[%clk 0:03:02]}  Nc6 {[%clk 0:02:39]} 7. h4 {[%clk 0:03:03]}  Nh6 {[%clk 0:02:35]} 8. h5 {[%clk 0:03:03]}  Nf5 {[%clk 0:02:34]} 9. h6 {[%clk 0:03:03]}  Bf8 {[%clk 0:02:34]} 10. Nf3 {[%clk 0:03:04]}  e6 {[%clk 0:02:30]} 11. g4 {[%clk 0:03:01]}  Nfe7 {[%clk 0:02:30]} 12. Bg5 {[%clk 0:03:01]}  Qb6 {[%clk 0:02:25]} 13. Qd2 {[%clk 0:03:01]}  Ng8 {[%clk 0:02:24]} 14. Be2 {[%clk 0:02:45]}  Be7 {[%clk 0:02:23]} 15. Nb5 {[%clk 0:02:32]}  Bb4 {[%clk 0:02:03]} 16. Nc3 {[%clk 0:02:28]}  Be7 {[%clk 0:02:03]} 17. Rd1 {[%clk 0:02:23]}  a6 {[%clk 0:01:57]} 18. Kf1 {[%clk 0:02:18]}  Bxg5 {[%clk 0:01:49]} 19. Nxg5 {[%clk 0:02:17]}  Nge7 {[%clk 0:01:46]} 20. Qf4 {[%clk 0:02:14]}  Qxb2 {[%clk 0:01:29]} 21. Qxf7+ {[%clk 0:02:05]}  Kd8 {[%clk 0:01:26]} 22. Rh3 {[%clk 0:02:05]}  Bd7 {[%clk 0:01:21]} 23. Na4 {[%clk 0:01:59]}  Qxa2 {[%clk 0:01:11]} 24. Nc5 {[%clk 0:01:58]}  Kc7 {[%clk 0:01:10]} 25. Ngxe6+ {[%clk 0:01:55]}  Bxe6 {[%clk 0:01:10]} 26. Nxe6+ {[%clk 0:01:50]}  Kb6 {[%clk 0:01:09]} 27. Rc3 {[%clk 0:01:04]}  Ka7 {[%clk 0:00:54]} 28. Rdc1 {[%clk 0:00:56]}  Rac8 {[%clk 0:00:50]} 29. Qf4 {[%clk 0:00:51]}  Rhe8 {[%clk 0:00:46]} 30. Qe3 {[%clk 0:00:46]}  Kb8 {[%clk 0:00:35]} 31. Ra3 {[%clk 0:00:42]}  Qb2 {[%clk 0:00:30]} 32. Rb3 {[%clk 0:00:42]}  Qa2 {[%clk 0:00:30]} 33. Rcb1 {[%clk 0:00:40]}  Na5 {[%clk 0:00:25]} 34. R3b2 {[%clk 0:00:36]}  Qa4 {[%clk 0:00:09]} 35. Nc5 {[%clk 0:00:36]}  Qc6 {[%clk 0:00:07]} 36. Bxa6 {[%clk 0:00:29]}  Ka7 {[%clk 0:00:07]} 37. Bxb7 {[%clk 0:00:29]}  Rb8 {[%clk 0:00:06]} 38. Bxc6 {[%clk 0:00:29]}  Rb7 {[%clk 0:00:06]} 39. Rxb7+ {[%clk 0:00:28]}  Nxb7 {[%clk 0:00:07]} 40. Rxb7+ {[%clk 0:00:28]}  Ka8 {[%clk 0:00:07]} 41. Kg1 {[%clk 0:00:29]} 1-0


[Site "https://www.chess.com"]